lending/lending_fUSD_20240928
["ID","MTS","AMOUNT","RATE_DAILY","PERIOD"]
[339367476,1727493047734,-561.481218,0.00012329,2]
[339367477,1727493047743,-561.481218,0.00012329,2]
[339367478,1727493047753,-561.481218,0.00012329,2]
[339367479,1727493047762,-561.481218,0.00012329,2]
[339367480,1727493047771,-151.0,0.00012329,2]
[339367481,1727493047780,-272.003725,0.00012329,2]
[339367482,1727493047790,-151.0,0.00012329,2]
[339367483,1727493047799,-151.0,0.00012329,2]
[339367484,1727493047809,-151.0,0.00012329,2]
[339367485,1727493047818,-151.0,0.00012329,2]
[339367486,1727493047827,-151.0,0.00012329,2]
[339367487,1727493047836,-151.0,0.00012329,2]
[339367488,1727493047845,-151.0,0.00012329,2]
[339367489,1727493047855,-151.0,0.00012329,2]
[339367490,1727493047864,-334.510237,0.00012329,2]
[339367491,1727493047873,-151.0,0.00012329,2]
[339367492,1727493047882,-151.0,0.00012329,2]
[339367493,1727493047892,-334.510237,0.00012329,2]
[339367494,1727493047901,-334.510237,0.00012329,2]
[339367495,1727493047910,-334.510237,0.00012329,2]
[339367496,1727493047919,-334.510237,0.00012329,2]
[339367497,1727493047928,-334.510237,0.00012329,2]
[339367498,1727493047937,-334.510237,0.00012329,2]
[339367499,1727493047947,-334.510237,0.00012329,2]
[339367500,1727493047955,-334.510237,0.00012329,2]
[339367501,1727493047964,-334.510237,0.00012329,2]
[339367502,1727493047974,-151.0,0.00012329,2]
[339367503,1727493047983,-151.0,0.00012329,2]
[339367504,1727493047992,-151.0,0.00012329,2]
[339367505,1727493048001,-151.0,0.00012329,2]
[339367506,1727493048010,-151.0,0.00012329,2]
[339367507,1727493048019,-224.382829,0.00012329,2]
[339367508,1727493048028,-151.257396,0.00012329,2]
[339367509,1727493048038,-151.440467,0.00012329,2]
[339367510,1727493048048,-151.0,0.00012329,2]
[339367511,1727493048057,-151.0,0.00012329,2]
[339367512,1727493048067,-151.0,0.00012329,2]
[339367513,1727493048076,-151.341421,0.00012329,2]
[339367514,1727493048086,-151.0,0.00012329,2]
[339367515,1727493048095,-151.0,0.00012329,2]
[339367516,1727493048104,-151.0,0.00012329,2]
[339367517,1727493048114,-151.0,0.00012329,2]
[339367518,1727493048123,-151.0,0.00012329,2]
[339367519,1727493048132,-151.0,0.00012329,2]
[339367520,1727493048142,-151.0,0.00012329,2]
[339367521,1727493048151,-169.429468,0.00012329,2]
[339367522,1727493048160,-151.0,0.00012329,2]
[339367523,1727493048169,-151.0,0.00012329,2]
[339367524,1727493048178,-151.251711,0.00012329,2]
[339367525,1727493048187,-151.280268,0.00012329,2]
[339367526,1727493048196,-151.255675,0.00012329,2]
[339367527,1727493048205,-714.284434,0.00012329,2]
[339367528,1727493048214,-714.284434,0.00012329,2]
[339367529,1727493048223,-714.284434,0.00012329,2]
[339367530,1727493048232,-714.284434,0.00012329,2]
[339367531,1727493048242,-714.284434,0.00012329,2]
[339367532,1727493048251,-714.284434,0.00012329,2]
[339367533,1727493048260,-714.284434,0.00012329,2]
[339367534,1727493048269,-714.284434,0.00012329,2]
[339367535,1727493048278,-714.284434,0.00012329,2]
[339367536,1727493048287,-714.284434,0.00012329,2]
[339367537,1727493048298,-151.0,0.00012329,2]
[339367538,1727493048307,-151.0,0.00012329,2]
[339367539,1727493048316,-151.0,0.00012329,2]
[339367540,1727493048325,-151.0,0.00012329,2]
[339367541,1727493048334,-151.0,0.00012329,2]
[339367542,1727493048343,-151.0,0.00012329,2]
[339367543,1727493048352,-151.0,0.00012329,2]
[339367544,1727493048360,-151.0,0.00012329,2]
[339367545,1727493048370,-256.087274,0.00012329,2]
[339367546,1727493048379,-151.0,0.00012329,2]
[339367547,1727493048388,-151.0,0.00012329,2]
[339367548,1727493048397,-151.996287,0.00012329,2]
[339367549,1727493048407,-151.0,0.00012329,2]
[339367550,1727493048416,-151.0,0.00012329,2]
[339367551,1727493048425,-151.0,0.00012329,2]
[339367552,1727493048434,-151.0,0.00012329,2]
[339367553,1727493048443,-151.0,0.00012329,2]
[339367554,1727493048453,-151.0,0.00012329,2]
[339367555,1727493048462,-151.0,0.00012329,2]
[339367556,1727493048471,-151.0,0.00012329,2]
[339367557,1727493048480,-151.0,0.00012329,2]
[339367558,1727493048494,-151.0,0.00012329,2]
[339367559,1727493048503,-151.0,0.00012329,2]
[339367560,1727493048512,-151.0,0.00012329,2]
[339367561,1727493048521,-151.0,0.00012329,2]
[339367562,1727493048530,-151.0,0.00012329,2]
[339367563,1727493048540,-151.0,0.00012329,2]
[339367564,1727493048550,-727.407084,0.00012329,2]
[339367565,1727493048559,-727.407084,0.00012329,2]
[339367566,1727493048568,-727.407084,0.00012329,2]
[339367567,1727493048577,-727.407084,0.00012329,2]
[339367568,1727493048586,-727.407084,0.00012329,2]
[339367569,1727493048596,-727.407084,0.00012329,2]
[339367570,1727493048605,-151.0,0.00012329,2]
[339367571,1727493048614,-151.0,0.00012329,2]
[339367572,1727493048623,-151.0,0.00012329,2]
[339367573,1727493048632,-151.0,0.00012329,2]
[339367574,1727493048641,-151.0,0.00012329,2]
[339367575,1727493048650,-151.0,0.00012329,2]
[339367576,1727493048660,-151.0,0.00012329,2]
[339367577,1727493048669,-151.0,0.00012329,2]
[339367578,1727493048678,-451.09546,0.00012329,2]
[339367579,1727493048687,-451.09546,0.00012329,2]
[339367580,1727493048697,-451.09546,0.00012329,2]
[339367581,1727493048706,-451.09546,0.00012329,2]
[339367582,1727493048715,-451.09546,0.00012329,2]
[339367583,1727493048724,-451.09546,0.00012329,2]
[339367584,1727493048734,-451.09546,0.00012329,2]
[339367585,1727493048743,-451.09546,0.00012329,2]
[339367586,1727493048753,-451.09546,0.00012329,2]
[339367587,1727493048762,-451.09546,0.00012329,2]
[339367588,1727493048771,-151.0,0.00012329,2]
[339367589,1727493048781,-151.0,0.00012329,2]
[339367590,1727493048791,-151.0,0.00012329,2]
[339367591,1727493048802,-228.68401,0.00012329,2]
[339367592,1727493048811,-151.0,0.00012329,2]
[339367593,1727493048821,-228.68401,0.00012329,2]
[339367594,1727493048829,-151.0,0.00012329,2]
[339367595,1727493048839,-228.68401,0.00012329,2]
[339367596,1727493048848,-228.68401,0.00012329,2]
[339367597,1727493048857,-228.68401,0.00012329,2]
[339367598,1727493048867,-151.0,0.00012329,2]
[339367599,1727493048876,-151.0,0.00012329,2]
[339367600,1727493048885,-224.343681,0.00012329,2]
[339367601,1727493048894,-151.0,0.00012329,2]
[339367602,1727493048904,-224.343681,0.00012329,2]
[339367603,1727493048914,-224.343681,0.00012329,2]
[339367604,1727493048923,-151.0,0.00012329,2]
[339367605,1727493048932,-151.0,0.00012329,2]
[339367606,1727493048941,-228.68401,0.00012329,2]
[339367607,1727493048950,-228.68401,0.00012329,2]
[339367608,1727493048960,-228.68401,0.00012329,2]
[339367609,1727493048969,-228.68401,0.00012329,2]
[339367610,1727493048979,-228.68401,0.00012329,2]
[339367611,1727493048988,-224.343681,0.00012329,2]
[339367612,1727493048998,-224.343681,0.00012329,2]
[339367613,1727493049007,-224.343681,0.00012329,2]
[339367614,1727493049025,-151.0,0.00012329,2]
[339367615,1727493049036,-151.0,0.00012329,2]
[339367616,1727493049047,-151.98422,0.00012329,2]
[339367617,1727493049057,-151.0,0.00012329,2]
[339367618,1727493049067,-151.294775,0.00012329,2]
[339367619,1727493049077,-564.521768,0.00012329,2]
[339367620,1727493049086,-151.0,0.00012329,2]
[339367621,1727493049095,-289.015922,0.00012329,2]
[339367622,1727493049105,-564.521768,0.00012329,2]
[339367623,1727493049115,-564.521768,0.00012329,2]
[339367624,1727493049125,-151.376708,0.00012329,2]
[339367625,1727493049134,-564.521768,0.00012329,2]
[339367626,1727493049143,-564.521768,0.00012329,2]
[339367627,1727493049153,-564.521768,0.00012329,2]
[339367628,1727493049163,-151.0,0.00012329,2]
[339367629,1727493049172,-151.0,0.00012329,2]
[339367630,1727493049182,-151.0,0.00012329,2]
[339367631,1727493049191,-151.0,0.00012329,2]
[339367632,1727493049201,-151.0,0.00012329,2]
[339367633,1727493049210,-151.0,0.00012329,2]
[339367634,1727493049220,-151.0,0.00012329,2]
[339367635,1727493049230,-151.0,0.00012329,2]
[339367636,1727493049239,-151.0,0.00012329,2]
[339367637,1727493049248,-151.0,0.00012329,2]
[339367638,1727493049258,-151.0,0.00012329,2]
[339367639,1727493049268,-151.284557,0.00012329,2]
[339367640,1727493049278,-838.635721,0.00012329,2]
[339367641,1727493049287,-838.635721,0.00012329,2]
[339367642,1727493049298,-838.635721,0.00012329,2]
[339367643,1727493049307,-838.635721,0.00012329,2]
[339367644,1727493049317,-838.635721,0.00012329,2]
[339367645,1727493049326,-838.635721,0.00012329,2]
[339367646,1727493049335,-185.643132,0.00012329,2]
[339367647,1727493049345,-838.635721,0.00012329,2]
[339367648,1727493049354,-185.643132,0.00012329,2]
[339367649,1727493049364,-838.635721,0.00012329,2]
[339367650,1727493049374,-185.643132,0.00012329,2]
[339367651,1727493049383,-838.635721,0.00012329,2]
[339367652,1727493049393,-185.643132,0.00012329,2]
[339367653,1727493049402,-838.635721,0.00012329,2]
[339367654,1727493049411,-185.643132,0.00012329,2]
[339367655,1727493049421,-151.0,0.00012329,2]
[339367656,1727493049431,-151.0,0.00012329,2]
[339367657,1727493049440,-151.0,0.00012329,2]
[339367658,1727493049450,-151.0,0.00012329,2]
[339367659,1727493049459,-185.643132,0.00012329,2]
[339367660,1727493049469,-164.271453,0.00012329,2]
[339367661,1727493049478,-185.643132,0.00012329,2]
[339367662,1727493049490,-185.643132,0.00012329,2]
[339367663,1727493049501,-185.643132,0.00012329,2]
[339367664,1727493049510,-185.643132,0.00012329,2]
[339367665,1727493049519,-150.0,0.00012329,2]
[339367666,1727493049529,-151.0,0.00012329,2]
[339367667,1727493049539,-150.0,0.00012329,2]
[339367668,1727493049550,-188.603707,0.00012329,2]
[339367669,1727493049559,-218.144532,0.00012329,2]
[339367670,1727493049569,-218.144532,0.00012329,2]
[339367671,1727493049579,-218.144532,0.00012329,2]
[339367672,1727493049589,-218.144532,0.00012329,2]
[339367673,1727493049598,-218.144532,0.00012329,2]
[339367674,1727493049608,-151.0,0.00012329,2]
[339367675,1727493049617,-151.0,0.00012329,2]
[339367676,1727493049628,-218.144532,0.00012329,2]
[339367677,1727493049637,-151.0,0.00012329,2]
[339367678,1727493049646,-218.144532,0.00012329,2]
[339367679,1727493049656,-151.0,0.00012329,2]
[339367680,1727493049667,-218.144532,0.00012329,2]
[339367681,1727493049676,-151.0,0.00012329,2]
[339367682,1727493049686,-218.144532,0.00012329,2]
[339367683,1727493049696,-218.144532,0.00012329,2]
[339367684,1727493049706,-151.0,0.00012329,2]
[339367685,1727493049716,-151.0,0.00012329,2]
[339367686,1727493049726,-151.0,0.00012329,2]
[339367687,1727493049736,-248.613252,0.00012329,2]
[339367688,1727493049746,-151.0,0.00012329,2]
[339367689,1727493049755,-151.0,0.00012329,2]
[339367690,1727493049765,-151.0,0.00012329,2]
[339367691,1727493049774,-151.0,0.00012329,2]
[339367692,1727493049784,-254.915554,0.00012329,2]
[339367693,1727493049795,-151.0,0.00012329,2]
[339367694,1727493049804,-151.318575,0.00012329,2]
[339367695,1727493049814,-602.51011,0.00012329,2]
[339367696,1727493049823,-151.0,0.00012329,2]
[339367697,1727493049833,-602.51011,0.00012329,2]
[339367698,1727493049842,-151.0,0.00012329,2]
[339367699,1727493049852,-602.51011,0.00012329,2]
[339367700,1727493049862,-151.0,0.00012329,2]
[339367701,1727493049872,-602.51011,0.00012329,2]
[339367702,1727493049882,-151.0,0.00012329,2]
[339367703,1727493049891,-602.51011,0.00012329,2]
[339367704,1727493049901,-151.0,0.00012329,2]
[339367705,1727493049910,-151.0,0.00012329,2]
[339367706,1727493049920,-238.549601,0.00012329,2]
[339367707,1727493049929,-602.51011,0.00012329,2]
[339367708,1727493049939,-602.51011,0.00012329,2]
[339367709,1727493049949,-602.51011,0.00012329,2]
[339367710,1727493049958,-602.51011,0.00012329,2]
[339367711,1727493049967,-602.51011,0.00012329,2]
[339367712,1727493049977,-265.109759,0.00012329,2]
[339367713,1727493049987,-151.0,0.00012329,2]
[339367714,1727493049996,-151.0,0.00012329,2]
[339367715,1727493050005,-151.0,0.00012329,2]
[339367716,1727493050014,-151.0,0.00012329,2]
[339367717,1727493050024,-151.0,0.00012329,2]
[339367718,1727493050033,-7961.515324,0.00012329,2]
[339367719,1727493050044,-7961.515324,0.00012329,2]
[339367720,1727493050053,-7961.515324,0.00012329,2]
[339367721,1727493050062,-7961.515324,0.00012329,2]
[339367722,1727493050072,-155.86881,0.00012329,2]
[339367723,1727493050082,-7961.515324,0.00012329,2]
[339367724,1727493050091,-155.86881,0.00012329,2]
[339367725,1727493050100,-155.86881,0.00012329,2]
[339367726,1727493050109,-155.86881,0.00012329,2]
[339367727,1727493050118,-155.86881,0.00012329,2]
[339367728,1727493050128,-7961.515324,0.00012329,2]
[339367729,1727493050140,-7961.515324,0.00012329,2]
[339367730,1727493050150,-7961.515324,0.00012329,2]
[339367731,1727493050160,-155.86881,0.00012329,2]
[339367732,1727493050170,-155.86881,0.00012329,2]
[339367733,1727493050179,-7961.515324,0.00012329,2]
[339367734,1727493050188,-155.86881,0.00012329,2]
[339367735,1727493050197,-1159.23268297,0.00012329,2]
[339367736,1727493050222,-2138.00000118,0.00012329,2]
[339367737,1727493050233,-1135.31998,0.00012329,2]
[339367738,1727493050244,-250.10479714,0.00012329,2]
[339367739,1727493050255,-3278.85786271,0.00012329,2]
[339367740,1727493050264,-155.86881,0.00012329,2]
[339367741,1727493050274,-155.86881,0.00012329,2]
[339367742,1727493050282,-151.0,0.00012329,2]
[339367743,1727493050292,-151.0,0.00012329,2]
[339367744,1727493050301,-151.0,0.00012329,2]
[339367745,1727493050311,-151.0,0.00012329,2]
[339367746,1727493050320,-151.0,0.00012329,2]
[339367747,1727493050329,-151.0,0.00012329,2]
[339367748,1727493050338,-151.0,0.00012329,2]
[339367749,1727493050347,-220.856771,0.00012329,2]
[339367750,1727493050357,-139.72364622,0.00012329,2]
[339367751,1727493050368,-11.27635378,0.00012329,2]
[339367752,1727493050377,-151.0,0.00012329,2]
[339367753,1727493050386,-151.0,0.00012329,2]
[339367754,1727493050396,-151.0,0.00012329,2]
[339367755,1727493050405,-151.0,0.00012329,2]
[339367756,1727493050415,-284.989733,0.00012329,2]
[339367757,1727493050424,-915.732923,0.00012329,2]
[339367758,1727493050434,-915.732923,0.00012329,2]
[339367759,1727493050443,-915.732923,0.00012329,2]
[339367760,1727493050452,-915.732923,0.00012329,2]
[339367761,1727493050462,-915.732923,0.00012329,2]
[339367762,1727493050472,-915.732923,0.00012329,2]
[339367763,1727493050481,-915.732923,0.00012329,2]
[339367764,1727493050492,-915.732923,0.00012329,2]
[339367765,1727493050501,-182.571144,0.00012329,2]
[339367766,1727493050511,-182.571144,0.00012329,2]
[339367767,1727493050520,-182.571144,0.00012329,2]
[339367768,1727493050532,-182.571144,0.00012329,2]
[339367769,1727493050548,-1184.009829,0.00012329,2]
[339367770,1727493050557,-1184.009829,0.00012329,2]
[339367771,1727493050566,-182.571144,0.00012329,2]
[339367772,1727493050750,-674.44557439,0.00012329,2]
[339367773,1727493050763,-509.56425461,0.00012329,2]
[339367774,1727493050773,-1184.009829,0.00012329,2]
[339367775,1727493050783,-182.571144,0.00012329,2]
[339367776,1727493050793,-182.571144,0.00012329,2]
[339367777,1727493050803,-182.571144,0.00012329,2]
[339367778,1727493050813,-1184.009829,0.00012329,2]
[339367779,1727493050822,-1184.009829,0.00012329,2]
[339367780,1727493050832,-1184.009829,0.00012329,2]
[339367781,1727493050842,-1184.009829,0.00012329,2]
[339367782,1727493050852,-151.0,0.00012329,2]
[339367783,1727493050861,-151.0,0.00012329,2]
[339367784,1727493050871,-151.0,0.00012329,2]
[339367785,1727493050880,-151.0,0.00012329,2]
[339367786,1727493050891,-151.0,0.00012329,2]
[339367787,1727493050902,-151.0,0.00012329,2]
[339367788,1727493050911,-265.974644,0.00012329,2]
[339367789,1727493050921,-305.691492,0.00012329,2]
[339367790,1727493050931,-305.691492,0.00012329,2]
[339367791,1727493050943,-305.691492,0.00012329,2]
[339367792,1727493050952,-305.691492,0.00012329,2]
[339367793,1727493050962,-151.0,0.00012329,2]
[339367794,1727493050972,-151.0,0.00012329,2]
[339367795,1727493050982,-151.0,0.00012329,2]
[339367796,1727493050992,-151.0,0.00012329,2]
[339367797,1727493051001,-151.0,0.00012329,2]
[339367798,1727493051010,-151.0,0.00012329,2]
[339367799,1727493051020,-151.0,0.00012329,2]
[339367800,1727493051030,-305.691492,0.00012329,2]
[339367801,1727493051040,-151.0,0.00012329,2]
[339367802,1727493051059,-305.691492,0.00012329,2]
[339367803,1727493051068,-305.691492,0.00012329,2]
[339367804,1727493051077,-305.691492,0.00012329,2]
[339367805,1727493051087,-151.0,0.00012329,2]
[339367806,1727493051096,-151.0,0.00012329,2]
[339367807,1727493051105,-151.0,0.00012329,2]
[339367808,1727493051115,-151.0,0.00012329,2]
[339367809,1727493051125,-151.610325,0.00012329,2]
[339367810,1727493051135,-41.55626299,0.00012329,2]
[339367811,1727493051157,-109.44373701,0.00012329,2]
[339367812,1727493051167,-151.0,0.00012329,2]
[339367813,1727493051176,-22.14227323,0.00012329,2]
[339367814,1727493060102,174.13,9.158e-05,2]
[339367815,1727493066445,255.5,0.00010959,2]
[339367817,1727493140634,700.0,0.00010068,2]
[339367818,1727493253385,799.33,9.535e-05,2]
[339367819,1727493570025,160.82431638,0.0001111,2]
[339367820,1727493638813,178.6,0.00010959,2]
[339367821,1727493946552,-500.0,0.00011164,2]
[339367823,1727493954354,1269.95413627,6.94e-05,2]
[339367824,1727493998100,150.0,0.0001111,2]
[339367836,1727494041763,246.0185761,0.000101,2]
[339367873,1727494089985,928.43,9.514e-05,2]
[339367880,1727494115915,211.86399693,0.0001,2]
[339367885,1727494131026,500.0,0.0001,2]
[339367896,1727494229572,168.67,0.000149,31]
[339367897,1727494229642,168.67,0.000149,31]
[339367906,1727494232030,-500.0,0.00011164,2]
[339367907,1727494232040,-898.48492803,0.00011392,2]
[339367913,1727494232163,-101.51507197,0.00011392,2]
[339367914,1727494232172,-293.30194815,0.00011417,2]
[339367915,1727494232284,-204.73805185,0.00011417,2]
[339367916,1727494232296,-234.7567944,0.00011428,2]
[339367917,1727494232307,-15.2432056,0.00011428,2]
[339367918,1727494232316,-221.74,0.00011428,2]
[339367919,1727494232325,-599.6515159,0.00011438,2]
[339367920,1727494232336,-100.3484841,0.00011438,2]
[339367921,1727494232345,-270.74,0.00011453,2]
[339367922,1727494232355,-213.36,0.00011457,2]
[339367923,1727494232364,-928.43,0.00011778,2]
[339367924,1727494232373,-150.0,0.000118,2]
[339367925,1727494232382,-1371.0,0.000121,2]
[339367926,1727494232391,-152.04,0.00012129,2]
[339367927,1727494232400,-2871.3712,0.00012222,2]
[339367928,1727494232410,-8421.4897,0.00012228,2]
[339367929,1727494232419,-215.6493,0.00012229,2]
[339367930,1727494232428,-806.5186,0.00012229,2]
[339367931,1727494232440,-500.0,0.0001223,2]
[339367932,1727494232452,-2000.0,0.0001223,2]
[339367933,1727494232465,-367.348,0.000123,2]
[339367934,1727494232477,-169.837,0.000123,2]
[339367935,1727494232488,-1000.0,0.00012311,2]
[339367936,1727494232499,-150.0,0.00012311,2]
[339367937,1727494232510,-55759.44954767,0.00012312,2]
[339367938,1727494232521,-4184.9716136,0.00012322,2]
[339367940,1727494232531,-26207.3512945,0.00012322,2]
[339367942,1727494232540,-151.0,0.00012329,2]
[339367943,1727494232550,-151.240053,0.00012329,2]
[339367944,1727494232560,-200.0,0.00012329,2]
[339367945,1727494232570,-200.0,0.00012329,2]
[339367946,1727494232581,-200.0,0.00012329,2]
[339367947,1727494232591,-200.0,0.00012329,2]
[339367948,1727494232602,-273.0,0.0001233,2]
[339367949,1727494232611,-150.05,0.00012365,2]
[339367950,1727494232622,-6392.18154033,0.000124,2]
[339367951,1727494232632,-168.42,0.00012445,2]
[339367952,1727494232643,-167.5,0.00012445,2]
[339367953,1727494232654,-169.14,0.00012445,2]
[339367954,1727494232665,-167.38,0.00012445,2]
[339367955,1727494232676,-167.6,0.00012445,2]
[339367956,1727494232687,-200.0,0.00012452,2]
[339367957,1727494232697,-200.0,0.00012452,2]
[339367958,1727494232708,-200.0,0.00012452,2]
[339367959,1727494232721,-200.0,0.00012452,2]
[339367960,1727494232734,-6392.18154026,0.00012456,2]
[339367961,1727494232744,-150.0,0.00012456,2]
[339367962,1727494232757,-150.0,0.00012456,2]
[339367963,1727494232767,-221.845358,0.00012475,2]
[339367964,1727494232777,-150.0,0.00012483,2]
[339367965,1727494232788,-150.0,0.00012483,2]
[339367966,1727494232798,-815.195,0.00012487,2]
[339367967,1727494232808,-562.365,0.00012487,2]
[339367968,1727494232819,-933.0,0.00012487,2]
[339367969,1727494232830,-276.543,0.00012487,2]
[339367970,1727494232840,-564.824,0.00012487,2]
[339367971,1727494232850,-1904.0,0.00012487,2]
[339367972,1727494232863,-807.0,0.00012487,2]
[339367973,1727494232873,-1911.0,0.00012487,2]
[339367974,1727494232884,-3349.0,0.00012487,2]
[339367975,1727494232895,-1081.0,0.00012487,2]
[339367976,1727494232905,-5922.017,0.00012487,2]
[339367977,1727494232916,-13500.0,0.00012487,2]
[339367978,1727494232928,-281.835,0.00012487,2]
[339367979,1727494232940,-1296.0,0.00012487,2]
[339367980,1727494232951,-626.476,0.00012487,2]
[339367981,1727494232961,-2002.41,0.0001249,2]
[339367982,1727494232972,-1964.99285059,0.000125,2]
[339367983,1727494232982,-2000.0,0.000125,2]
[339367984,1727494232991,-1099.55,0.000125,2]
[339367985,1727494233001,-273.0,0.0001251,2]
[339367986,1727494233011,-150.0,0.00012511,2]
[339367987,1727494233022,-207.10036726,0.00012511,2]
[339367988,1727494233032,-6392.18154026,0.00012511,2]
[339367989,1727494233041,-150.0,0.00012519,2]
[339367990,1727494233052,-170.124,0.00012519,2]
[339367991,1727494233063,-250.0,0.00012519,2]
[339367992,1727494233074,-264.357,0.00012519,2]
[339367993,1727494233085,-150.106,0.00012519,2]
[339367994,1727494233095,-201.812,0.00012519,2]
[339367995,1727494233106,-150.0,0.00012538,2]
[339367996,1727494233117,-200.476,0.00012544,2]
[339367997,1727494233127,-197.97063938,0.00012566,2]
[339367998,1727494233138,-180.0,0.00012566,2]
[339367999,1727494233148,-6392.18154026,0.00012567,2]
[339368000,1727494233160,-151.0,0.00012576,2]
[339368001,1727494233172,-200.0,0.00012577,2]
[339368002,1727494233182,-200.0,0.00012577,2]
[339368003,1727494233193,-200.0,0.00012577,2]
[339368004,1727494233204,-200.0,0.00012577,2]
[339368005,1727494233216,-151.0,0.00012579,2]
[339368006,1727494233227,-467.6524,0.00012579,2]
[339368007,1727494233238,-151.0,0.00012579,2]
[339368008,1727494233248,-151.0,0.00012579,2]
[339368009,1727494233258,-1000.0,0.00012588,2]
[339368010,1727494233272,-151.0,0.00012598,2]
[339368011,1727494233282,-7500.0,0.000126,2]
[339368012,1727494233292,-166.86492749,0.000126,2]
[339368013,1727494233302,-159.17433453,0.000126,2]
[339368014,1727494233312,-1320.95417839,0.000126,2]
[339368015,1727494233323,-674.29496158,0.000126,2]
[339368016,1727494233333,-335.38654943,0.000126,2]
[339368017,1727494233346,-2425.41384949,0.000126,2]
[339368018,1727494233358,-2932.74345355,0.000126,2]
[339368019,1727494233369,-6392.18154026,0.00012622,2]
[339368020,1727494233380,-151.0,0.00012633,2]
[339368021,1727494233391,-674.29496156,0.00012643,2]
[339368022,1727494233401,-151.0,0.00012649,2]
[339368023,1727494233412,-157.040577,0.00012649,2]
[339368024,1727494233422,-157.040577,0.00012649,2]
[339368025,1727494233431,-151.0,0.00012649,2]
[339368026,1727494233441,-183.414895,0.00012649,2]
[339368027,1727494233451,-183.414895,0.00012649,2]
[339368028,1727494233463,-247.62495506,0.00012673,2]
[339368029,1727494233474,-321.21302335,0.00012673,2]
[339368030,1727494233484,-412.08745709,0.00012673,2]
[339368031,1727494233494,-465.20328442,0.00012673,2]
[339368032,1727494233506,-507.56863756,0.00012673,2]
[339368033,1727494233516,-603.85010541,0.00012673,2]
[339368034,1727494233528,-506.6250151,0.00012673,2]
[339368035,1727494233539,-213.496879,0.00012673,2]
[339368036,1727494233549,-213.496879,0.00012673,2]
[339368037,1727494233559,-151.0,0.00012673,2]
[339368038,1727494233569,-151.0,0.00012673,2]
[339368039,1727494233578,-449.184975,0.00012673,2]
[339368040,1727494233588,-449.184975,0.00012673,2]
[339368041,1727494233599,-184.418782,0.00012673,2]
[339368042,1727494233609,-357.142217,0.00012673,2]
[339368043,1727494233619,-357.142217,0.00012673,2]
[339368044,1727494233629,-1320.95417838,0.00012675,2]
[339368045,1727494233639,-335.38654941,0.00012675,2]
[339368046,1727494233649,-6392.18154026,0.00012678,2]
[339368047,1727494233659,-273.0,0.0001268,2]
[339368048,1727494233669,-674.29496156,0.00012685,2]
[339368049,1727494233680,-151.0,0.00012686,2]
[339368050,1727494233690,-151.0,0.00012688,2]
[339368051,1727494233699,-151.0,0.00012688,2]
[339368052,1727494233709,-151.0,0.00012688,2]
[339368053,1727494233721,-151.0,0.00012688,2]
[339368054,1727494233731,-151.0,0.00012688,2]
[339368055,1727494233742,-151.0,0.00012688,2]
[339368056,1727494233752,-151.0,0.00012688,2]
[339368057,1727494233762,-151.0,0.00012688,2]
[339368058,1727494233772,-151.0,0.00012688,2]
[339368059,1727494233782,-151.0,0.00012688,2]